[Event "Titled Tuesday Blitz February 21 Late 2023"]
[White "Hernandez Sanchez, Elvis De La Caridad"]
[Black "Swiercz, Dariusz"]
[WhiteFideId "6400353"]
[BlackFideId "1126881"]
[WhiteElo "2243"]
[BlackElo "2637"]
[Result "0-1"]
[Round "01"]
[TimeControl "180+2"]
[Date "2023.02.21"]
[WhiteClock "0:00:05"]
[BlackClock "0:00:56"]

1. d4 {[%clk 0:01:59]}  Nf6 {[%clk 0:02:59]} 2. Nf3 {[%clk 0:01:58]}  b6 {[%clk 0:02:58]} 3. e3 {[%clk 0:01:58]}  Bb7 {[%clk 0:02:58]} 4. Bd3 {[%clk 0:01:58]}  c5 {[%clk 0:02:57]} 5. O-O {[%clk 0:01:57]}  g6 {[%clk 0:02:57]} 6. c4 {[%clk 0:01:57]}  Bg7 {[%clk 0:02:57]} 7. d5 {[%clk 0:01:57]}  O-O {[%clk 0:02:56]} 8. Nc3 {[%clk 0:01:57]}  d6 {[%clk 0:02:54]} 9. e4 {[%clk 0:01:58]}  e5 {[%clk 0:02:54]} 10. Bg5 {[%clk 0:01:58]}  Nbd7 {[%clk 0:02:54]} 11. Qd2 {[%clk 0:01:57]}  a6 {[%clk 0:02:53]} 12. a4 {[%clk 0:01:56]}  Bc8 {[%clk 0:02:53]} 13. b3 {[%clk 0:01:55]}  Rb8 {[%clk 0:02:54]} 14. Kh1 {[%clk 0:01:53]}  Qe8 {[%clk 0:02:54]} 15. Ng1 {[%clk 0:01:53]}  Kh8 {[%clk 0:02:54]} 16. Nge2 {[%clk 0:01:51]}  Nh5 {[%clk 0:02:52]} 17. Bh6 {[%clk 0:01:50]}  Ndf6 {[%clk 0:02:48]} 18. Bxg7+ {[%clk 0:01:49]}  Kxg7 {[%clk 0:02:45]} 19. f4 {[%clk 0:01:50]}  exf4 {[%clk 0:02:42]} 20. Nxf4 {[%clk 0:01:51]}  Nxf4 {[%clk 0:02:37]} 21. Qxf4 {[%clk 0:01:52]}  Qe5 {[%clk 0:02:37]} 22. Qxe5 {[%clk 0:01:51]}  dxe5 {[%clk 0:02:38]} 23. h3 {[%clk 0:01:49]}  a5 {[%clk 0:02:32]} 24. g4 {[%clk 0:01:44]}  Ne8 {[%clk 0:02:31]} 25. Kh2 {[%clk 0:01:40]}  Nd6 {[%clk 0:02:31]} 26. Nb5 {[%clk 0:01:40]}  Ne8 {[%clk 0:02:26]} 27. Kg3 {[%clk 0:01:37]}  Bd7 {[%clk 0:02:27]} 28. Rf2 {[%clk 0:01:36]}  Bxb5 {[%clk 0:02:26]} 29. axb5 {[%clk 0:01:36]}  Nd6 {[%clk 0:02:22]} 30. g5 {[%clk 0:01:32]}  f6 {[%clk 0:02:22]} 31. gxf6+ {[%clk 0:01:27]}  Rxf6 {[%clk 0:02:23]} 32. Rxf6 {[%clk 0:01:27]}  Kxf6 {[%clk 0:02:24]} 33. Kf3 {[%clk 0:01:18]}  Rf8 {[%clk 0:02:23]} 34. Ke3 {[%clk 0:01:18]}  Kg5 {[%clk 0:02:17]} 35. h4+ {[%clk 0:01:10]}  Kh6 {[%clk 0:02:13]} 36. Ra2 {[%clk 0:00:53]}  Kg7 {[%clk 0:02:01]} 37. Rg2 {[%clk 0:00:51]}  h5 {[%clk 0:02:01]} 38. Be2 {[%clk 0:00:48]}  Kh6 {[%clk 0:01:29]} 39. Rg5 {[%clk 0:00:48]}  Re8 {[%clk 0:01:29]} 40. Rg1 {[%clk 0:00:48]}  Re7 {[%clk 0:01:28]} 41. Rf1 {[%clk 0:00:47]}  Rf7 {[%clk 0:01:27]} 42. Ra1 {[%clk 0:00:24]}  Rf4 {[%clk 0:01:25]} 43. Bf3 {[%clk 0:00:18]}  Rxh4 {[%clk 0:01:25]} 44. b4 {[%clk 0:00:19]}  axb4 {[%clk 0:01:23]} 45. Ra6 {[%clk 0:00:18]}  b3 {[%clk 0:01:18]} 46. Bd1 {[%clk 0:00:15]}  b2 {[%clk 0:01:16]} 47. Bc2 {[%clk 0:00:15]}  Rxe4+ {[%clk 0:01:12]} 48. Kd2 {[%clk 0:00:10]}  Rd4+ {[%clk 0:01:04]} 49. Kc3 {[%clk 0:00:10]}  Nxc4 {[%clk 0:01:05]} 50. d6 {[%clk 0:00:06]}  Ne3 {[%clk 0:00:56]} 51. Rxb6 {[%clk 0:00:05]}  Nd5+ {[%clk 0:00:56]} 0-1


[Site "https://www.chess.com"]

[Event "Titled Tuesday Blitz February 21 Late 2023"]
[White "Grot, Blazej"]
[Black "Gholami Orimi, Mahdi"]
[WhiteFideId "21835845"]
[BlackFideId "12558486"]
[WhiteElo "1990"]
[BlackElo "2420"]
[Result "0-1"]
[Round "01"]
[TimeControl "180+2"]
[Date "2023.02.21"]
[WhiteClock "0:00:39"]
[BlackClock "0:00:57"]

1. e4 {[%clk 0:02:58]}  c5 {[%clk 0:02:11]} 2. Nc3 {[%clk 0:02:55]}  Nc6 {[%clk 0:02:10]} 3. Bb5 {[%clk 0:02:55]}  Nd4 {[%clk 0:02:09]} 4. Nf3 {[%clk 0:02:53]}  a6 {[%clk 0:02:08]} 5. Bc4 {[%clk 0:02:53]}  g6 {[%clk 0:02:07]} 6. Nxd4 {[%clk 0:02:52]}  cxd4 {[%clk 0:02:07]} 7. Ne2 {[%clk 0:02:53]}  Bg7 {[%clk 0:02:08]} 8. O-O {[%clk 0:02:51]}  e6 {[%clk 0:01:55]} 9. d3 {[%clk 0:02:48]}  Ne7 {[%clk 0:01:55]} 10. f4 {[%clk 0:02:47]}  d5 {[%clk 0:01:51]} 11. exd5 {[%clk 0:02:33]}  Nxd5 {[%clk 0:01:48]} 12. Ng3 {[%clk 0:02:25]}  O-O {[%clk 0:01:47]} 13. Qf3 {[%clk 0:02:10]}  Ne3 {[%clk 0:01:24]} 14. Bxe3 {[%clk 0:01:50]}  dxe3 {[%clk 0:01:25]} 15. f5 {[%clk 0:01:51]}  exf5 {[%clk 0:01:21]} 16. c3 {[%clk 0:01:50]}  Qb6 {[%clk 0:01:14]} 17. Qe2 {[%clk 0:01:41]}  Bd7 {[%clk 0:01:14]} 18. h4 {[%clk 0:01:35]}  Rae8 {[%clk 0:01:09]} 19. h5 {[%clk 0:01:31]}  Be5 {[%clk 0:01:09]} 20. Rf3 {[%clk 0:01:16]}  Bc6 {[%clk 0:01:09]} 21. hxg6 {[%clk 0:01:15]}  hxg6 {[%clk 0:01:07]} 22. Nxf5 {[%clk 0:01:07]}  Bxf3 {[%clk 0:01:03]} 23. gxf3 {[%clk 0:00:40]}  gxf5 {[%clk 0:01:00]} 24. Qg2+ {[%clk 0:00:39]}  Bg7 {[%clk 0:00:59]} 25. Kf1 {[%clk 0:00:39]}  e2+ {[%clk 0:00:59]} 26. Ke1 {[%clk 0:00:39]}  Qxb2 {[%clk 0:00:57]} 0-1


[Site "https://www.chess.com"]

[Event "Titled Tuesday Blitz February 21 Late 2023"]
[White "Sanal, Vahap"]
[Black "Poeta, Caio Medeiros"]
[WhiteFideId "6300545"]
[BlackFideId "2142660"]
[WhiteElo "2600"]
[BlackElo "2088"]
[Result "1-0"]
[Round "01"]
[TimeControl "180+2"]
[Date "2023.02.21"]
[WhiteClock "0:00:13"]
[BlackClock "0:00:01"]

1. e4 {[%clk 0:02:55]}  c6 {[%clk 0:02:59]} 2. d4 {[%clk 0:02:45]}  d5 {[%clk 0:03:00]} 3. exd5 {[%clk 0:02:43]}  cxd5 {[%clk 0:03:00]} 4. Nf3 {[%clk 0:02:38]}  Nf6 {[%clk 0:03:01]} 5. c3 {[%clk 0:02:38]}  Nc6 {[%clk 0:03:00]} 6. Bd3 {[%clk 0:02:38]}  g6 {[%clk 0:03:01]} 7. h3 {[%clk 0:02:38]}  Bg7 {[%clk 0:03:02]} 8. O-O {[%clk 0:02:38]}  O-O {[%clk 0:03:02]} 9. Re1 {[%clk 0:02:39]}  Bf5 {[%clk 0:03:02]} 10. Bf4 {[%clk 0:02:37]}  Rc8 {[%clk 0:03:01]} 11. Na3 {[%clk 0:02:37]}  a6 {[%clk 0:02:56]} 12. Nc2 {[%clk 0:02:36]}  Bxd3 {[%clk 0:02:51]} 13. Qxd3 {[%clk 0:02:37]}  Ne4 {[%clk 0:02:51]} 14. Nd2 {[%clk 0:02:34]}  Nxd2 {[%clk 0:02:51]} 15. Qxd2 {[%clk 0:02:35]}  e6 {[%clk 0:02:50]} 16. Bh6 {[%clk 0:02:33]}  b5 {[%clk 0:02:41]} 17. Bxg7 {[%clk 0:02:32]}  Kxg7 {[%clk 0:02:41]} 18. a3 {[%clk 0:02:32]}  a5 {[%clk 0:02:39]} 19. Ne3 {[%clk 0:02:33]}  Qb6 {[%clk 0:02:36]} 20. Ng4 {[%clk 0:02:33]}  Kh8 {[%clk 0:02:11]} 21. Qh6 {[%clk 0:02:24]}  f5 {[%clk 0:01:53]} 22. Nh2 {[%clk 0:02:16]}  Rce8 {[%clk 0:01:48]} 23. Nf3 {[%clk 0:02:15]}  Qd8 {[%clk 0:01:35]} 24. Ng5 {[%clk 0:02:12]}  Qd7 {[%clk 0:01:34]} 25. Re2 {[%clk 0:02:12]}  Nd8 {[%clk 0:01:32]} 26. Rae1 {[%clk 0:02:12]}  Rf6 {[%clk 0:01:29]} 27. Qh4 {[%clk 0:02:10]}  Rff8 {[%clk 0:01:24]} 28. f4 {[%clk 0:02:00]}  Kg8 {[%clk 0:01:17]} 29. Re3 {[%clk 0:01:57]}  Re7 {[%clk 0:01:10]} 30. R1e2 {[%clk 0:01:56]}  Rfe8 {[%clk 0:01:10]} 31. Qe1 {[%clk 0:01:55]}  h6 {[%clk 0:01:02]} 32. Nf3 {[%clk 0:01:55]}  Nf7 {[%clk 0:01:00]} 33. Ne5 {[%clk 0:01:55]}  Nxe5 {[%clk 0:01:00]} 34. Rxe5 {[%clk 0:01:56]}  Kf7 {[%clk 0:01:01]} 35. R2e3 {[%clk 0:01:53]}  Qc6 {[%clk 0:01:00]} 36. Kh2 {[%clk 0:01:52]}  Rc8 {[%clk 0:00:55]} 37. Qh4 {[%clk 0:01:49]}  h5 {[%clk 0:00:53]} 38. Rg3 {[%clk 0:01:44]}  Rg8 {[%clk 0:00:51]} 39. Qg5 {[%clk 0:01:43]}  Qc4 {[%clk 0:00:43]} 40. Rge3 {[%clk 0:01:39]}  Qb3 {[%clk 0:00:38]} 41. Re2 {[%clk 0:01:36]}  Qc4 {[%clk 0:00:38]} 42. Qh6 {[%clk 0:01:29]}  Qc8 {[%clk 0:00:34]} 43. R5e3 {[%clk 0:01:24]}  Qf8 {[%clk 0:00:33]} 44. Qg5 {[%clk 0:01:23]}  Qc8 {[%clk 0:00:32]} 45. Qh4 {[%clk 0:01:24]}  Rge8 {[%clk 0:00:31]} 46. b3 {[%clk 0:01:21]}  Qc6 {[%clk 0:00:27]} 47. Qg3 {[%clk 0:01:15]}  Qc7 {[%clk 0:00:27]} 48. Re5 {[%clk 0:01:15]}  Rg8 {[%clk 0:00:25]} 49. Qe3 {[%clk 0:01:15]}  Rge8 {[%clk 0:00:23]} 50. b4 {[%clk 0:01:13]}  a4 {[%clk 0:00:22]} 51. Qd3 {[%clk 0:01:11]}  Qc4 {[%clk 0:00:22]} 52. Qg3 {[%clk 0:01:12]}  Qb3 {[%clk 0:00:21]} 53. R2e3 {[%clk 0:01:07]}  Qxa3 {[%clk 0:00:20]} 54. Qg5 {[%clk 0:01:06]}  Qa2 {[%clk 0:00:19]} 55. Qh6 {[%clk 0:01:03]}  Rg8 {[%clk 0:00:18]} 56. Qh7+ {[%clk 0:01:03]}  Rg7 {[%clk 0:00:18]} 57. Qh8 {[%clk 0:01:04]}  Qc4 {[%clk 0:00:18]} 58. Qb8 {[%clk 0:01:00]}  a3 {[%clk 0:00:14]} 59. Qa8 {[%clk 0:00:57]}  a2 {[%clk 0:00:14]} 60. Re2 {[%clk 0:00:51]}  Qxc3 {[%clk 0:00:13]} 61. Qxa2 {[%clk 0:00:45]}  Qxd4 {[%clk 0:00:14]} 62. Rf2 {[%clk 0:00:45]}  g5 {[%clk 0:00:13]} 63. Qe2 {[%clk 0:00:43]}  gxf4 {[%clk 0:00:13]} 64. Qxh5+ {[%clk 0:00:43]}  Kf6 {[%clk 0:00:13]} 65. Rfe2 {[%clk 0:00:37]}  f3 {[%clk 0:00:10]} 66. Qxf3 {[%clk 0:00:32]}  Qxb4 {[%clk 0:00:10]} 67. Qe3 {[%clk 0:00:27]}  Qd6 {[%clk 0:00:10]} 68. Qh6+ {[%clk 0:00:26]}  Rg6 {[%clk 0:00:10]} 69. Qf8+ {[%clk 0:00:26]}  Kg5 {[%clk 0:00:08]} 70. g3 {[%clk 0:00:23]}  Qc7 {[%clk 0:00:04]} 71. h4+ {[%clk 0:00:20]}  Kh5 {[%clk 0:00:04]} 72. Qh8+ {[%clk 0:00:15]}  Rh6 {[%clk 0:00:04]} 73. g4+ {[%clk 0:00:15]}  Kxg4 {[%clk 0:00:03]} 74. Qxh6 {[%clk 0:00:15]}  Rg7 {[%clk 0:00:01]} 75. Rg2+ {[%clk 0:00:12]}  Kf3 {[%clk 0:00:01]} 76. Qxg7 {[%clk 0:00:13]}  Qxe5+ {[%clk 0:00:01]} 77. Qxe5 {[%clk 0:00:13]} 1-0


[Site "https://www.chess.com"]

[Event "Titled Tuesday Blitz February 21 Late 2023"]
[White "Zhigalko, Sergei"]
[Black "Chernomordik, Pavel"]
[WhiteFideId "13502956"]
[BlackFideId "2804530"]
[WhiteElo "2572"]
[BlackElo "2150"]
[Result "1-0"]
[Round "01"]
[TimeControl "180+2"]
[Date "2023.02.21"]
[WhiteClock "0:00:30"]
[BlackClock "0:00:09"]

1. e4 {[%clk 0:03:00]}  g6 {[%clk 0:02:59]} 2. d4 {[%clk 0:02:59]}  Bg7 {[%clk 0:02:59]} 3. Nc3 {[%clk 0:02:59]}  d6 {[%clk 0:02:59]} 4. Nf3 {[%clk 0:02:58]}  a6 {[%clk 0:02:59]} 5. Be3 {[%clk 0:02:58]}  b5 {[%clk 0:02:59]} 6. a4 {[%clk 0:02:59]}  b4 {[%clk 0:02:58]} 7. Ne2 {[%clk 0:02:59]}  Bb7 {[%clk 0:02:55]} 8. Ng3 {[%clk 0:02:59]}  Nd7 {[%clk 0:02:55]} 9. a5 {[%clk 0:02:58]}  c5 {[%clk 0:02:49]} 10. c3 {[%clk 0:02:59]}  bxc3 {[%clk 0:02:47]} 11. bxc3 {[%clk 0:03:00]}  Qc7 {[%clk 0:02:47]} 12. Bd3 {[%clk 0:02:58]}  Ngf6 {[%clk 0:02:45]} 13. O-O {[%clk 0:02:57]}  O-O {[%clk 0:02:43]} 14. h3 {[%clk 0:02:58]}  e5 {[%clk 0:02:36]} 15. d5 {[%clk 0:02:53]}  c4 {[%clk 0:02:29]} 16. Bc2 {[%clk 0:02:52]}  Nc5 {[%clk 0:02:26]} 17. Nd2 {[%clk 0:02:51]}  Rac8 {[%clk 0:02:07]} 18. Qe2 {[%clk 0:02:39]}  Nb3 {[%clk 0:01:54]} 19. Bxb3 {[%clk 0:02:33]}  cxb3 {[%clk 0:01:53]} 20. c4 {[%clk 0:02:34]}  Nd7 {[%clk 0:01:40]} 21. Rfb1 {[%clk 0:02:18]}  Nc5 {[%clk 0:01:36]} 22. Nxb3 {[%clk 0:02:10]}  Nxb3 {[%clk 0:01:31]} 23. Rxb3 {[%clk 0:02:10]}  f5 {[%clk 0:01:29]} 24. exf5 {[%clk 0:01:35]}  gxf5 {[%clk 0:01:25]} 25. Nh5 {[%clk 0:01:35]}  f4 {[%clk 0:01:18]} 26. Bd2 {[%clk 0:01:25]}  f3 {[%clk 0:01:04]} 27. Qe4 {[%clk 0:01:09]}  Ba8 {[%clk 0:00:55]} 28. Rxf3 {[%clk 0:00:47]}  Qxc4 {[%clk 0:00:45]} 29. Qxc4 {[%clk 0:00:42]}  Rxc4 {[%clk 0:00:43]} 30. Rg3 {[%clk 0:00:43]}  Bxd5 {[%clk 0:00:23]} 31. Rxg7+ {[%clk 0:00:37]}  Kh8 {[%clk 0:00:23]} 32. Rd7 {[%clk 0:00:37]}  Rc6 {[%clk 0:00:12]} 33. Bh6 {[%clk 0:00:33]}  Be6 {[%clk 0:00:09]} 34. Re7 {[%clk 0:00:30]} 1-0


[Site "https://www.chess.com"]

[Event "Titled Tuesday Blitz February 21 Late 2023"]
[White "Mujumdar, Sameer"]
[Black "Bernadskiy, Vitaliy"]
[WhiteFideId "2029707"]
[BlackFideId "14100371"]
[WhiteElo "1992"]
[BlackElo "2592"]
[Result "0-1"]
[Round "01"]
[TimeControl "180+2"]
[Date "2023.02.21"]
[WhiteClock "0:00:47"]
[BlackClock "0:00:35"]

1. e4 {[%clk 0:02:58]}  c5 {[%clk 0:02:59]} 2. Nf3 {[%clk 0:02:58]}  d6 {[%clk 0:02:59]} 3. d4 {[%clk 0:02:58]}  cxd4 {[%clk 0:03:00]} 4. Nxd4 {[%clk 0:02:59]}  Nf6 {[%clk 0:03:00]} 5. Nc3 {[%clk 0:02:59]}  a6 {[%clk 0:03:01]} 6. h3 {[%clk 0:02:58]}  e5 {[%clk 0:03:00]} 7. Nde2 {[%clk 0:02:58]}  h5 {[%clk 0:02:57]} 8. Bg5 {[%clk 0:02:57]}  Nbd7 {[%clk 0:02:56]} 9. g3 {[%clk 0:02:50]}  b5 {[%clk 0:02:55]} 10. Bg2 {[%clk 0:02:50]}  Bb7 {[%clk 0:02:55]} 11. Nd5 {[%clk 0:02:44]}  Be7 {[%clk 0:02:46]} 12. Bxf6 {[%clk 0:02:37]}  Bxf6 {[%clk 0:02:38]} 13. Nec3 {[%clk 0:02:24]}  h4 {[%clk 0:02:38]} 14. Nxf6+ {[%clk 0:02:06]}  Qxf6 {[%clk 0:02:25]} 15. Nd5 {[%clk 0:02:02]}  Bxd5 {[%clk 0:02:25]} 16. Qxd5 {[%clk 0:02:01]}  Rc8 {[%clk 0:02:25]} 17. O-O-O {[%clk 0:01:54]}  Qxf2 {[%clk 0:02:09]} 18. Rd2 {[%clk 0:01:54]}  Qc5 {[%clk 0:02:08]} 19. Qxd6 {[%clk 0:01:46]}  Qxd6 {[%clk 0:02:08]} 20. Rxd6 {[%clk 0:01:47]}  hxg3 {[%clk 0:02:07]} 21. Rd3 {[%clk 0:01:47]}  Ke7 {[%clk 0:01:55]} 22. Rxg3 {[%clk 0:01:47]}  g6 {[%clk 0:01:55]} 23. Rd1 {[%clk 0:01:43]}  Nb6 {[%clk 0:01:51]} 24. b3 {[%clk 0:01:42]}  b4 {[%clk 0:01:46]} 25. Kb2 {[%clk 0:01:40]}  Rh4 {[%clk 0:01:36]} 26. Bf3 {[%clk 0:01:30]}  Rf4 {[%clk 0:01:34]} 27. Bg4 {[%clk 0:01:27]}  Rc7 {[%clk 0:01:20]} 28. Re3 {[%clk 0:01:28]}  a5 {[%clk 0:01:14]} 29. Rd2 {[%clk 0:00:57]}  a4 {[%clk 0:01:12]} 30. a3 {[%clk 0:00:58]}  axb3 {[%clk 0:01:07]} 31. cxb3 {[%clk 0:00:54]}  bxa3+ {[%clk 0:01:06]} 32. Kxa3 {[%clk 0:00:54]}  Rc6 {[%clk 0:00:40]} 33. Rdd3 {[%clk 0:00:50]}  Rd6 {[%clk 0:00:34]} 34. Rxd6 {[%clk 0:00:48]}  Kxd6 {[%clk 0:00:35]} 35. Kb4 {[%clk 0:00:47]}  Nd5+ {[%clk 0:00:35]} 0-1


[Site "https://www.chess.com"]

[Event "Titled Tuesday Blitz February 21 Late 2023"]
[White "Delorme, Axel"]
[Black "Gokerkan, Cem Kaan"]
[WhiteFideId "632023"]
[BlackFideId "6336760"]
[WhiteElo "2483"]
[BlackElo "2500"]
[Result "0-1"]
[Round "01"]
[TimeControl "180+2"]
[Date "2023.02.21"]
[WhiteClock "0:00:01"]
[BlackClock "0:01:31"]

1. e4 {[%clk 0:02:59]}  e5 {[%clk 0:02:56]} 2. Nf3 {[%clk 0:02:58]}  Nf6 {[%clk 0:02:56]} 3. Nxe5 {[%clk 0:02:58]}  d5 {[%clk 0:02:56]} 4. exd5 {[%clk 0:02:52]}  Qxd5 {[%clk 0:02:57]} 5. d4 {[%clk 0:02:50]}  Nc6 {[%clk 0:02:54]} 6. Nxc6 {[%clk 0:02:45]}  Qxc6 {[%clk 0:02:53]} 7. Nc3 {[%clk 0:02:44]}  Bb4 {[%clk 0:02:53]} 8. Qe2+ {[%clk 0:02:38]}  Kd8 {[%clk 0:02:35]} 9. Qc4 {[%clk 0:02:33]}  Re8+ {[%clk 0:02:34]} 10. Be3 {[%clk 0:02:32]}  Nd5 {[%clk 0:02:25]} 11. O-O-O {[%clk 0:01:57]}  Bxc3 {[%clk 0:02:12]} 12. bxc3 {[%clk 0:01:48]}  Nxc3 {[%clk 0:02:13]} 13. Qxc6 {[%clk 0:01:35]}  bxc6 {[%clk 0:02:14]} 14. Re1 {[%clk 0:01:14]}  Nxa2+ {[%clk 0:02:15]} 15. Kd2 {[%clk 0:01:14]}  Nb4 {[%clk 0:02:15]} 16. Bc4 {[%clk 0:01:02]}  Nd5 {[%clk 0:02:15]} 17. Bg5+ {[%clk 0:00:51]}  f6 {[%clk 0:02:14]} 18. Rxe8+ {[%clk 0:00:50]}  Kxe8 {[%clk 0:02:15]} 19. Re1+ {[%clk 0:00:50]}  Kf7 {[%clk 0:02:05]} 20. Bf4 {[%clk 0:00:42]}  Be6 {[%clk 0:02:05]} 21. Bg3 {[%clk 0:00:36]}  a5 {[%clk 0:02:00]} 22. c3 {[%clk 0:00:34]}  a4 {[%clk 0:01:58]} 23. f3 {[%clk 0:00:32]}  Ra7 {[%clk 0:01:52]} 24. Ra1 {[%clk 0:00:29]}  Nb6 {[%clk 0:01:51]} 25. Bxe6+ {[%clk 0:00:27]}  Kxe6 {[%clk 0:01:52]} 26. Kd3 {[%clk 0:00:28]}  Kd5 {[%clk 0:01:50]} 27. Bf2 {[%clk 0:00:20]}  a3 {[%clk 0:01:49]} 28. Kc2 {[%clk 0:00:18]}  Kc4 {[%clk 0:01:48]} 29. h4 {[%clk 0:00:09]}  Nd5 {[%clk 0:01:45]} 30. h5 {[%clk 0:00:09]}  a2 {[%clk 0:01:43]} 31. g4 {[%clk 0:00:09]}  Nxc3 {[%clk 0:01:41]} 32. d5 {[%clk 0:00:09]}  c5 {[%clk 0:01:41]} 33. f4 {[%clk 0:00:08]}  Nxd5 {[%clk 0:01:40]} 34. f5 {[%clk 0:00:08]}  Nb4+ {[%clk 0:01:37]} 35. Kd2 {[%clk 0:00:07]}  Ra3 {[%clk 0:01:37]} 36. g5 {[%clk 0:00:02]}  Rf3 {[%clk 0:01:35]} 37. h6 {[%clk 0:00:01]}  Rxf2+ {[%clk 0:01:33]} 38. Ke3 {[%clk 0:00:02]}  Rxf5 {[%clk 0:01:31]} 39. hxg7 {[%clk 0:00:01]}  Rxg5 {[%clk 0:01:31]} 0-1


[Site "https://www.chess.com"]

[Event "Titled Tuesday Blitz February 21 Late 2023"]
[White "Grigoriants, Sergey"]
[Black "Prydun, Andriy"]
[WhiteFideId "4130804"]
[BlackFideId "14145898"]
[WhiteElo "2562"]
[BlackElo "2134"]
[Result "1/2-1/2"]
[Round "01"]
[TimeControl "180+2"]
[Date "2023.02.21"]
[WhiteClock "0:00:35"]
[BlackClock "0:00:54"]

1. d4 {[%clk 0:03:00]}  Nf6 {[%clk 0:02:58]} 2. c4 {[%clk 0:03:00]}  e6 {[%clk 0:02:58]} 3. g3 {[%clk 0:02:59]}  d5 {[%clk 0:02:57]} 4. Bg2 {[%clk 0:02:59]}  c6 {[%clk 0:02:58]} 5. Nd2 {[%clk 0:02:53]}  Nbd7 {[%clk 0:02:58]} 6. Ngf3 {[%clk 0:02:53]}  Be7 {[%clk 0:02:56]} 7. O-O {[%clk 0:02:53]}  O-O {[%clk 0:02:56]} 8. Qc2 {[%clk 0:02:53]}  b6 {[%clk 0:02:56]} 9. e4 {[%clk 0:02:53]}  Bb7 {[%clk 0:02:57]} 10. e5 {[%clk 0:02:51]}  Ne8 {[%clk 0:02:54]} 11. cxd5 {[%clk 0:02:52]}  cxd5 {[%clk 0:02:55]} 12. Qd3 {[%clk 0:02:51]}  a5 {[%clk 0:02:55]} 13. Re1 {[%clk 0:02:51]}  Ba6 {[%clk 0:02:54]} 14. Qe3 {[%clk 0:02:49]}  Nb8 {[%clk 0:02:53]} 15. a3 {[%clk 0:02:48]}  Nc6 {[%clk 0:02:53]} 16. h4 {[%clk 0:02:42]}  h6 {[%clk 0:02:52]} 17. Bf1 {[%clk 0:02:27]}  Bxf1 {[%clk 0:02:51]} 18. Nxf1 {[%clk 0:02:28]}  Nc7 {[%clk 0:02:49]} 19. N1h2 {[%clk 0:02:26]}  Re8 {[%clk 0:02:27]} 20. Bd2 {[%clk 0:02:23]}  Bf8 {[%clk 0:02:19]} 21. h5 {[%clk 0:02:17]}  Rc8 {[%clk 0:02:04]} 22. g4 {[%clk 0:02:17]}  Be7 {[%clk 0:01:56]} 23. Kh1 {[%clk 0:02:15]}  Nb5 {[%clk 0:01:51]} 24. Rg1 {[%clk 0:02:07]}  Bg5 {[%clk 0:01:50]} 25. Nxg5 {[%clk 0:02:07]}  Qxg5 {[%clk 0:01:50]} 26. Qd3 {[%clk 0:02:02]}  Qh4 {[%clk 0:01:45]} 27. Qxb5 {[%clk 0:02:02]}  Nxd4 {[%clk 0:01:45]} 28. Qd3 {[%clk 0:02:01]}  Rc4 {[%clk 0:01:42]} 29. b3 {[%clk 0:01:55]}  Nxb3 {[%clk 0:01:23]} 30. Qxb3 {[%clk 0:01:55]}  Qxf2 {[%clk 0:01:23]} 31. Be3 {[%clk 0:01:41]}  Qe2 {[%clk 0:01:23]} 32. Ra2 {[%clk 0:01:30]}  a4 {[%clk 0:01:20]} 33. Rxe2 {[%clk 0:01:24]}  axb3 {[%clk 0:01:21]} 34. Rb2 {[%clk 0:01:18]}  Rc3 {[%clk 0:01:20]} 35. Bd4 {[%clk 0:01:08]}  Rd3 {[%clk 0:01:19]} 36. Bxb6 {[%clk 0:01:07]}  Rc8 {[%clk 0:01:14]} 37. a4 {[%clk 0:01:03]}  Rc2 {[%clk 0:01:12]} 38. Rxc2 {[%clk 0:00:53]}  bxc2 {[%clk 0:01:13]} 39. a5 {[%clk 0:00:53]}  d4 {[%clk 0:00:59]} 40. Nf3 {[%clk 0:00:39]}  Rd1 {[%clk 0:00:54]} 41. a6 {[%clk 0:00:35]} 1/2-1/2


[Site "https://www.chess.com"]

[Event "Titled Tuesday Blitz February 21 Late 2023"]
[White "Vakhlamov, Igor L."]
[Black "Rodriguez Fontecha, Marcos"]
[WhiteFideId "24126748"]
[BlackFideId "2256576"]
[WhiteElo "2413"]
[BlackElo "2309"]
[Result "1-0"]
[Round "01"]
[TimeControl "180+2"]
[Date "2023.02.21"]
[WhiteClock "0:00:15"]
[BlackClock "0:00:02"]

1. e4 {[%clk 0:02:58]}  e6 {[%clk 0:02:56]} 2. d4 {[%clk 0:02:57]}  d5 {[%clk 0:02:56]} 3. Nc3 {[%clk 0:02:58]}  h6 {[%clk 0:02:56]} 4. Bd3 {[%clk 0:02:56]}  Nc6 {[%clk 0:02:55]} 5. Nf3 {[%clk 0:02:55]}  Nb4 {[%clk 0:02:55]} 6. O-O {[%clk 0:02:48]}  Nxd3 {[%clk 0:02:54]} 7. Qxd3 {[%clk 0:02:46]}  Nf6 {[%clk 0:02:54]} 8. Re1 {[%clk 0:02:45]}  Be7 {[%clk 0:02:54]} 9. Bf4 {[%clk 0:02:43]}  c6 {[%clk 0:02:48]} 10. e5 {[%clk 0:02:43]}  Nd7 {[%clk 0:02:47]} 11. Ne2 {[%clk 0:02:43]}  c5 {[%clk 0:02:45]} 12. c3 {[%clk 0:02:43]}  b6 {[%clk 0:02:40]} 13. Bg3 {[%clk 0:02:29]}  a5 {[%clk 0:02:39]} 14. Qd2 {[%clk 0:02:28]}  Ba6 {[%clk 0:02:38]} 15. a3 {[%clk 0:02:27]}  Qc7 {[%clk 0:02:30]} 16. Rac1 {[%clk 0:02:26]}  Bc4 {[%clk 0:02:13]} 17. Nf4 {[%clk 0:02:24]}  a4 {[%clk 0:02:07]} 18. Qe3 {[%clk 0:02:15]}  b5 {[%clk 0:01:39]} 19. Nd2 {[%clk 0:02:11]}  Nb6 {[%clk 0:01:38]} 20. Nh5 {[%clk 0:02:02]}  Rg8 {[%clk 0:01:37]} 21. Qf3 {[%clk 0:01:57]}  Bg5 {[%clk 0:01:36]} 22. Bf4 {[%clk 0:01:57]}  Qe7 {[%clk 0:01:26]} 23. Be3 {[%clk 0:01:51]}  Nd7 {[%clk 0:01:23]} 24. g3 {[%clk 0:01:48]}  g6 {[%clk 0:01:17]} 25. Bxg5 {[%clk 0:01:37]}  Qxg5 {[%clk 0:01:14]} 26. Nf4 {[%clk 0:01:32]}  Qf5 {[%clk 0:01:09]} 27. g4 {[%clk 0:01:03]}  Qg5 {[%clk 0:01:07]} 28. Kh1 {[%clk 0:01:03]}  Qh4 {[%clk 0:00:59]} 29. Ng2 {[%clk 0:01:00]}  Qg5 {[%clk 0:00:56]} 30. Nf4 {[%clk 0:01:00]}  Qh4 {[%clk 0:00:56]} 31. Nxc4 {[%clk 0:00:43]}  bxc4 {[%clk 0:00:55]} 32. Nxd5 {[%clk 0:00:44]}  exd5 {[%clk 0:00:33]} 33. Qxd5 {[%clk 0:00:44]}  Ra6 {[%clk 0:00:33]} 34. Qxc4 {[%clk 0:00:36]}  Re6 {[%clk 0:00:30]} 35. d5 {[%clk 0:00:29]}  Rxe5 {[%clk 0:00:20]} 36. Qxa4 {[%clk 0:00:21]}  Kf8 {[%clk 0:00:05]} 37. Qxd7 {[%clk 0:00:19]}  Rxe1+ {[%clk 0:00:05]} 38. Rxe1 {[%clk 0:00:19]}  Qxf2 {[%clk 0:00:06]} 39. Qe7+ {[%clk 0:00:15]}  Kg7 {[%clk 0:00:06]} 40. Qe2 {[%clk 0:00:16]}  Qf4 {[%clk 0:00:05]} 41. Qe5+ {[%clk 0:00:16]}  Qxe5 {[%clk 0:00:06]} 42. Rxe5 {[%clk 0:00:17]}  Rb8 {[%clk 0:00:05]} 43. b4 {[%clk 0:00:17]}  Ra8 {[%clk 0:00:06]} 44. bxc5 {[%clk 0:00:17]}  Rxa3 {[%clk 0:00:06]} 45. d6 {[%clk 0:00:17]}  Kf6 {[%clk 0:00:03]} 46. Re3 {[%clk 0:00:15]}  Ra6 {[%clk 0:00:02]} 47. d7 {[%clk 0:00:15]}  Ra1+ {[%clk 0:00:02]} 48. Kg2 {[%clk 0:00:15]} 1-0


[Site "https://www.chess.com"]